fUST/lending_fUST_20250411
["ID","MTS","AMOUNT","RATE_DAILY","PERIOD"]
[357691688,1744332723749,-902.62,0.00021917,2]
[357691689,1744332723759,-2689.13,0.00021917,2]
[357691690,1744332723770,-785.7,0.00021917,2]
[357691691,1744332723780,-500.0,0.00021917,2]
[357691692,1744332723791,-5675.99,0.00021917,2]
[357691693,1744332723802,-870.2,0.00021917,2]
[357691694,1744332723814,-597.88,0.00021917,2]
[357691695,1744332723824,-626.25,0.00021917,2]
[357691696,1744332723835,-892.18,0.00021917,2]
[357691697,1744332723845,-682.01,0.00021917,2]
[357691698,1744332723855,-500.0,0.00021917,2]
[357691699,1744332723865,-500.0,0.00021917,2]
[357691700,1744332723875,-500.0,0.00021917,2]
[357691701,1744332723885,-500.0,0.00021917,2]
[357691702,1744332723895,-500.0,0.00021917,2]
[357691703,1744332723904,-500.0,0.00021917,2]
[357691704,1744332723914,-500.0,0.00021917,2]
[357691705,1744332723924,-500.0,0.00021917,2]
[357691706,1744332723935,-500.0,0.00021917,2]
[357691707,1744332723945,-235.49323898,0.00021917,2]
[357691708,1744332723955,-306.53259121,0.00021917,2]
[357691709,1744332723965,-2060.38,0.00021917,2]
[357691710,1744332723976,-605.05,0.00021917,2]
[357691711,1744332723985,-2354.26,0.00021917,2]
[357691712,1744332723995,-622.34,0.00021917,2]
[357691713,1744332724006,-1017.63,0.00021917,2]
[357691714,1744332724016,-938.97,0.00021917,2]
[357691715,1744332724026,-658.07,0.00021917,2]
[357691716,1744332724036,-1373.8,0.00021917,2]
[357691717,1744332724045,-753.79,0.00021917,2]
[357691718,1744332724055,-1265.29,0.00021917,2]
[357691719,1744332724066,-820.1,0.00021917,2]
[357691720,1744332724076,-584.98,0.00021917,2]
[357691721,1744332724086,-1800.19,0.00021917,2]
[357691722,1744332724096,-508.82,0.00021917,2]
[357691723,1744332724106,-500.0,0.00021917,2]
[357691724,1744332724116,-965.93,0.00021917,2]
[357691725,1744332724126,-622.37,0.00021917,2]
[357691726,1744332724137,-964.69,0.00021917,2]
[357691727,1744332724148,-1069.32,0.00021917,2]
[357691728,1744332724158,-1504.79,0.00021917,2]
[357691729,1744332724169,-626.21,0.00021917,2]
[357691730,1744332724179,-522.1,0.00021917,2]
[357691731,1744332724189,-213.84,0.00021917,2]
[357691732,1744332724198,-519.3,0.00021917,2]
[357691733,1744332724208,-1328.83,0.00021917,2]
[357691734,1744332724218,-920.39,0.00021917,2]
[357691735,1744332724228,-1101.36,0.00021917,2]
[357691736,1744332724238,-500.0,0.00021917,2]
[357691737,1744332724247,-818.53,0.00021917,2]
[357691738,1744332724257,-856.67,0.00021917,2]
[357691739,1744332724267,-743.65,0.00021917,2]
[357691740,1744332724277,-1156.1,0.00021917,2]
[357691741,1744332724287,-678.36,0.00021917,2]
[357691742,1744332724297,-1705.48,0.00021917,2]
[357691743,1744332724307,-716.68,0.00021917,2]
[357691744,1744332724317,-1296.89,0.00021917,2]
[357691745,1744332724328,-500.0,0.00021917,2]
[357691746,1744332724339,-790.9,0.00021917,2]
[357691747,1744332724349,-704.94,0.00021917,2]
[357691748,1744332724359,-567.7,0.00021917,2]
[357691749,1744332724369,-558.42,0.00021917,2]
[357691750,1744332724379,-500.0,0.00021917,2]
[357691751,1744332724389,-1188.07,0.00021917,2]
[357691752,1744332724399,-714.62,0.00021917,2]
[357691753,1744332724409,-3771.47,0.00021917,2]
[357691754,1744332724419,-570.24,0.00021917,2]
[357691755,1744332724429,-1402.01,0.00021917,2]
[357691756,1744332724439,-500.0,0.00021917,2]
[357691757,1744332724450,-1107.44,0.00021917,2]
[357691758,1744332724460,-726.32,0.00021917,2]
[357691759,1744332724470,-1438.7,0.00021917,2]
[357691760,1744332724481,-500.0,0.00021917,2]
[357691761,1744332724491,-934.2,0.00021917,2]
[357691762,1744332724500,-870.5,0.00021917,2]
[357691763,1744332724511,-1864.53,0.00021917,2]
[357691764,1744332724521,-537.53,0.00021917,2]
[357691765,1744332724531,-998.15,0.00021917,2]
[357691766,1744332724542,-3529.69,0.00021917,2]
[357691767,1744332724551,-1383.56,0.00021917,2]
[357691768,1744332724563,-3044.77,0.00021917,2]
[357691769,1744332724574,-2146.75,0.00021917,2]
[357691770,1744332724584,-1512.13,0.00021917,2]
[357691771,1744332724595,-14936.72,0.00021917,2]
[357691772,1744332724604,-1335.19,0.00021917,2]
[357691773,1744332724615,-1204.17,0.00021917,2]
[357691774,1744332724626,-1290.13,0.00021917,2]
[357691775,1744332724636,-2211.01,0.00021917,2]
[357691776,1744332724646,-782.17,0.00021917,2]
[357691777,1744332724656,-1521.17,0.00021917,2]
[357691778,1744332724667,-3640.91,0.00021917,2]
[357691779,1744332724678,-708.03,0.00021917,2]
[357691780,1744332724688,-1604.56,0.00021917,2]
[357691781,1744332724699,-1186.97,0.00021917,2]
[357691782,1744332724708,-7810.81,0.00021917,2]
[357691783,1744332724719,-640.07,0.00021917,2]
[357691784,1744332724729,-614.86,0.00021917,2]
[357691785,1744332724739,-13554.02,0.00021917,2]
[357691786,1744332724750,-769.63,0.00021917,2]
[357691787,1744332724760,-5806.94,0.00021917,2]
[357691788,1744332724769,-555.86,0.00021917,2]
[357691789,1744332724780,-1492.5,0.00021917,2]
[357691790,1744332724789,-726.32,0.00021917,2]
[357691791,1744332724799,-659.35,0.00021917,2]
[357691792,1744332724808,-688.0,0.00021917,2]
[357691793,1744332724818,-1067.15,0.00021917,2]
[357691794,1744332724828,-2931.48,0.00021917,2]
[357691795,1744332724838,-1735.47,0.00021917,2]
[357691796,1744332724847,-1109.5,0.00021917,2]
[357691797,1744332724857,-711.11,0.00021917,2]
[357691798,1744332724867,-13734.21,0.00021917,2]
[357691799,1744332724876,-2323.29,0.00021917,2]
[357691800,1744332724886,-1042.58,0.00021917,2]
[357691801,1744332724895,-728.17,0.00021917,2]
[357691802,1744332724905,-569.2,0.00021917,2]
[357691803,1744332724914,-500.0,0.00021917,2]
[357691804,1744332724924,-4218.44,0.00021917,2]
[357691805,1744332724934,-848.49,0.00021917,2]
[357691806,1744332724944,-2639.23,0.00021917,2]
[357691807,1744332724953,-2518.79,0.00021917,2]
[357691808,1744332724963,-2840.99,0.00021917,2]
[357691809,1744332724973,-630.78,0.00021917,2]
[357691810,1744332724983,-500.0,0.00021917,2]
[357691811,1744332724993,-1220.83,0.00021917,2]
[357691812,1744332725002,-5035.72,0.00021917,2]
[357691813,1744332725012,-3916.52,0.00021917,2]
[357691814,1744332725022,-508.34,0.00021917,2]
[357691815,1744332725031,-1000.19,0.00021917,2]
[357691816,1744332725041,-884.76,0.00021917,2]
[357691817,1744332725051,-1347.73,0.00021917,2]
[357691818,1744332725063,-4175.53,0.00021917,2]
[357691819,1744332725073,-2772.56,0.00021917,2]
[357691820,1744332725082,-792.4,0.00021917,2]
[357691821,1744332725092,-856.93,0.00021917,2]
[357691822,1744332725102,-740.48,0.00021917,2]
[357691823,1744332725111,-183.50301087,0.00021917,2]
[357691824,1744332725121,-781.83,0.00021917,2]
[357691825,1744332725130,-9626.05,0.00021917,2]
[357691826,1744332725140,-601.25,0.00021917,2]
[357691827,1744332725150,-966.14,0.00021917,2]
[357691828,1744332725159,-1947.04,0.00021917,2]
[357691829,1744332725169,-4677.94,0.00021917,2]
[357691830,1744332725180,-527.85,0.00021917,2]
[357691831,1744332725189,-714.13,0.00021917,2]
[357691832,1744332725199,-756.51,0.00021917,2]
[357691833,1744332725208,-6483.88,0.00021917,2]
[357691834,1744332725217,-808.09,0.00021917,2]
[357691835,1744332725228,-615.42,0.00021917,2]
[357691836,1744332725237,-500.0,0.00021917,2]
[357691837,1744332725247,-6484.18,0.00021917,2]
[357691838,1744332725256,-1945.56,0.00021917,2]
[357691839,1744332725266,-524.93,0.00021917,2]
[357691840,1744332725275,-1064.33,0.00021917,2]
[357691841,1744332725285,-585.82,0.00021917,2]
[357691842,1744332725375,-1433.89,0.00021917,2]
[357691843,1744332725385,-917.83,0.00021917,2]
[357691844,1744332725395,-500.0,0.00021917,2]
[357691845,1744332725405,-668.16,0.00021917,2]
[357691846,1744332725414,-1100.79,0.00021917,2]
[357691847,1744332725425,-540.97,0.00021917,2]
[357691848,1744332725434,-4679.43,0.00021917,2]
[357691849,1744332725444,-947.12,0.00021917,2]
[357691850,1744332725454,-1008.44,0.00021917,2]
[357691851,1744332725463,-4183.52,0.00021917,2]
[357691852,1744332725472,-1151.7,0.00021917,2]
[357691853,1744332725481,-759.31,0.00021917,2]
[357691854,1744332725491,-447.82037692,0.00021917,2]
[357691855,1744332725501,-500.0,0.00021917,2]
[357691856,1744332725510,-626.77,0.00021917,2]
[357691857,1744332725519,-942.33,0.00021917,2]
[357691858,1744332725528,-2564.86,0.00021917,2]
[357691859,1744332725538,-1699.0,0.00021917,2]
[357691860,1744332725548,-731.4,0.00021917,2]
[357691861,1744332725557,-570.97,0.00021917,2]
[357691862,1744332725567,-3260.9,0.00021917,2]
[357691863,1744332725577,-754.83,0.00021917,2]
[357691864,1744332725587,-500.9,0.00021917,2]
[357691865,1744332725597,-500.0,0.00021917,2]
[357691866,1744332725607,-18184.96,0.00021917,2]
[357691867,1744332725617,-506.91,0.00021917,2]
[357691868,1744332725627,-740.5,0.00021917,2]
[357691869,1744332725637,-500.0,0.00021917,2]
[357691870,1744332725647,-559.11,0.00021917,2]
[357691871,1744332725657,-1994.39,0.00021917,2]
[357691872,1744332725669,-6436.24,0.00021917,2]
[357691873,1744332725681,-911.05,0.00021917,2]
[357691874,1744332725691,-1272.17,0.00021917,2]
[357691875,1744332725701,-1574.76,0.00021917,2]
[357691876,1744332725711,-1474.54,0.00021917,2]
[357691877,1744332725721,-650.21,0.00021917,2]
[357691878,1744332725731,-2422.75,0.00021917,2]
[357691879,1744332725741,-1298.9493909,0.00021918,7]
[357691880,1744332725752,-10053.6096682,0.00021918,2]
[357691881,1744332725763,-401.5628886,0.00021918,7]
[357691882,1744332725773,-300.85790919,0.00021918,2]
[357691883,1744332725783,-615.97188714,0.00021918,2]
[357691884,1744332725794,-160.0,0.00021949,10]
[357691885,1744332725803,-1000.0,0.00021952,2]
[357691886,1744332725813,-1000.0,0.00021952,2]
[357691887,1744332725823,-1000.0,0.00021952,2]
[357691888,1744332725835,-952.12627496,0.00021952,2]
[357691889,1744332725844,-1000.0,0.00021952,2]
[357691890,1744332725854,-1000.0,0.00021952,2]
[357691891,1744332725863,-1000.0,0.00021952,2]
[357691892,1744332725873,-1000.0,0.00021952,2]
[357691893,1744332725883,-1000.0,0.00021952,2]
[357691894,1744332725893,-1000.0,0.00021952,2]
[357691895,1744332725903,-1000.0,0.00021952,2]
[357691896,1744332725912,-1000.0,0.00021952,2]
[357691897,1744332725922,-1000.0,0.00021952,2]
[357691898,1744332725932,-1000.0,0.00021952,2]
[357691899,1744332725942,-1000.0,0.00021952,2]
[357691900,1744332725951,-1000.0,0.00021952,2]
[357691901,1744332725961,-1000.0,0.00021952,2]
[357691902,1744332725971,-1000.0,0.00021952,2]
[357691903,1744332725981,-1000.0,0.00021952,2]
[357691904,1744332725991,-1000.0,0.00021952,2]
[357691905,1744332726000,-5500.0,0.00021952,2]
[357691906,1744332726010,-477.8250805,0.00021952,2]
[357691907,1744332726020,-1000.0,0.00021952,2]
[357691908,1744332726029,-1000.0,0.00021952,2]
[357691909,1744332726040,-519.44028508,0.00021952,2]
[357691910,1744332726049,-1000.0,0.00021952,2]
[357691911,1744332726058,-1000.0,0.00021952,2]
[357691912,1744332726068,-1037.4611266,0.00021952,2]
[357691913,1744332726078,-1000.0,0.00021952,2]
[357691914,1744332726087,-1000.0,0.00021952,2]
[357691915,1744332726096,-1000.0,0.00021952,2]
[357691916,1744332726105,-268.56927444,0.00021952,2]
[357691917,1744332726115,-1000.0,0.00021952,2]
[357691918,1744332726124,-1000.0,0.00021952,2]
[357691919,1744332726134,-1000.0,0.00021952,2]
[357691920,1744332726144,-1000.0,0.00021952,2]
[357691921,1744332726153,-1002.41758713,0.00021952,2]
[357691922,1744332726163,-160.0,0.00021983,11]
[357691923,1744332726173,-1777.0,0.00022,2]
[357691924,1744332726182,-347.83935188,0.00022,2]
[357691925,1744332726191,-1000.0,0.00022,2]
[357691926,1744332726200,-2000.0,0.00022,4]
[357691927,1744332726210,-160.0,0.00022017,12]
[357691928,1744332726220,-160.0,0.0002205,13]
[357691929,1744332726229,-160.0,0.00022084,14]
[357691930,1744332726239,-290.67319804,0.000221,2]
[357691931,1744332726249,-160.0,0.00022118,15]
[357691932,1744332726259,-11630.24417326,0.00022141,3]
[357691933,1744332726270,-160.0,0.00022152,16]
[357691934,1744332726280,-160.0,0.00022185,17]
[357691935,1744332726290,-1132.93,0.00022191,2]
[357691936,1744332726299,-3699.75,0.00022191,2]
[357691937,1744332726308,-865.73,0.00022191,2]
[357691938,1744332726317,-1251.82,0.00022191,2]
[357691939,1744332726327,-599.27,0.00022191,2]
[357691940,1744332726337,-570.69,0.00022191,2]
[357691941,1744332726347,-822.09,0.00022191,2]
[357691942,1744332726357,-780.46,0.00022191,2]
[357691943,1744332726366,-911.25,0.00022191,2]
[357691944,1744332726375,-500.0,0.00022191,2]
[357691945,1744332726385,-1232.99,0.00022191,2]
[357691946,1744332726394,-588.16,0.00022191,2]
[357691947,1744332726403,-500.0,0.00022191,2]
[357691948,1744332726413,-507.17,0.00022191,2]
[357691949,1744332726422,-1079.66,0.00022191,2]
[357691950,1744332726431,-1430.67,0.00022191,2]
[357691951,1744332726441,-1119.95,0.00022191,2]
[357691952,1744332726450,-625.16,0.00022191,2]
[357691953,1744332726459,-342.12094498,0.00022191,2]
[357691954,1744332726469,-686.77,0.00022191,2]
[357691955,1744332726479,-2680.42,0.00022191,2]
[357691956,1744332726489,-500.0,0.00022191,2]
[357691957,1744332726498,-596.86,0.00022191,2]
[357691958,1744332726507,-2411.42,0.00022191,2]
[357691959,1744332726517,-687.7,0.00022191,2]
[357691960,1744332726527,-902.62,0.00022191,2]
[357691961,1744332726537,-2689.13,0.00022191,2]
[357691962,1744332726546,-785.7,0.00022191,2]
[357691963,1744332726555,-500.0,0.00022191,2]
[357691964,1744332726567,-5675.99,0.00022191,2]
[357691965,1744332726576,-870.2,0.00022191,2]
[357691966,1744332726586,-597.88,0.00022191,2]
[357691967,1744332726595,-626.25,0.00022191,2]
[357691968,1744332726605,-892.18,0.00022191,2]
[357691969,1744332726614,-682.01,0.00022191,2]
[357691970,1744332726624,-2060.38,0.00022191,2]
[357691971,1744332726634,-605.05,0.00022191,2]
[357691972,1744332726643,-2354.26,0.00022191,2]
[357691973,1744332726653,-622.34,0.00022191,2]
[357691974,1744332726662,-1017.63,0.00022191,2]
[357691975,1744332726673,-938.97,0.00022191,2]
[357691976,1744332726683,-658.07,0.00022191,2]
[357691977,1744332726692,-1373.8,0.00022191,2]
[357691978,1744332726701,-753.79,0.00022191,2]
[357691979,1744332726713,-1265.29,0.00022191,2]
[357691980,1744332726722,-820.1,0.00022191,2]
[357691981,1744332726732,-584.98,0.00022191,2]
[357691982,1744332726742,-1800.19,0.00022191,2]
[357691983,1744332726752,-508.82,0.00022191,2]
[357691984,1744332726763,-287.45568702,0.00022191,2]
[357691985,1744332726773,-965.93,0.00022191,2]
[357691986,1744332726783,-622.37,0.00022191,2]
[357691987,1744332726793,-964.69,0.00022191,2]
[357691988,1744332726804,-1069.32,0.00022191,2]
[357691989,1744332726814,-1504.79,0.00022191,2]
[357691990,1744332726824,-626.21,0.00022191,2]
[357691991,1744332726833,-522.1,0.00022191,2]
[357691992,1744332726843,-519.3,0.00022191,2]
[357691993,1744332726853,-1328.83,0.00022191,2]
[357691994,1744332726862,-920.39,0.00022191,2]
[357691995,1744332726872,-1101.36,0.00022191,2]
[357691996,1744332726882,-570.19852696,0.00022191,2]
[357691997,1744332726891,-818.53,0.00022191,2]
[357691998,1744332726901,-856.67,0.00022191,2]
[357691999,1744332726911,-743.65,0.00022191,2]
[357692000,1744332726921,-1156.1,0.00022191,2]
[357692001,1744332726931,-678.36,0.00022191,2]
[357692002,1744332726940,-1705.48,0.00022191,2]
[357692003,1744332726949,-716.68,0.00022191,2]
[357692004,1744332726958,-1296.89,0.00022191,2]
[357692005,1744332726968,-500.0,0.00022191,2]
[357692006,1744332726978,-790.9,0.00022191,2]
[357692007,1744332726987,-704.94,0.00022191,2]
[357692008,1744332726997,-567.7,0.00022191,2]
[357692009,1744332727007,-558.42,0.00022191,2]
[357692010,1744332727017,-500.0,0.00022191,2]
[357692011,1744332727026,-1188.07,0.00022191,2]
[357692012,1744332727035,-714.62,0.00022191,2]
[357692013,1744332727045,-3771.47,0.00022191,2]
[357692014,1744332727055,-570.24,0.00022191,2]
[357692015,1744332727066,-1402.01,0.00022191,2]
[357692016,1744332727075,-500.0,0.00022191,2]
[357692017,1744332727085,-1107.44,0.00022191,2]
[357692018,1744332727095,-726.32,0.00022191,2]
[357692019,1744332727104,-1438.7,0.00022191,2]
[357692020,1744332727114,-500.0,0.00022191,2]
[357692021,1744332727124,-934.2,0.00022191,2]
[357692022,1744332727134,-870.5,0.00022191,2]
[357692023,1744332727144,-1864.53,0.00022191,2]
[357692024,1744332727155,-537.53,0.00022191,2]
[357692025,1744332727164,-998.15,0.00022191,2]
[357692026,1744332727173,-3529.69,0.00022191,2]
[357692027,1744332727183,-1383.56,0.00022191,2]
[357692028,1744332727192,-3044.77,0.00022191,2]
[357692029,1744332727202,-2146.75,0.00022191,2]
[357692030,1744332727212,-1512.13,0.00022191,2]
[357692031,1744332727222,-14936.72,0.00022191,2]
[357692032,1744332727231,-1335.19,0.00022191,2]
[357692033,1744332727241,-1204.17,0.00022191,2]
[357692034,1744332727251,-1290.13,0.00022191,2]
[357692035,1744332727261,-2211.01,0.00022191,2]
[357692036,1744332727271,-782.17,0.00022191,2]
[357692037,1744332727281,-1521.17,0.00022191,2]
[357692038,1744332727291,-3640.91,0.00022191,2]
[357692039,1744332727301,-708.03,0.00022191,2]
[357692040,1744332727310,-1604.56,0.00022191,2]
[357692041,1744332727320,-1186.97,0.00022191,2]
[357692042,1744332727330,-7810.81,0.00022191,2]
[357692043,1744332727340,-640.07,0.00022191,2]
[357692044,1744332727350,-614.86,0.00022191,2]
[357692045,1744332727360,-13554.02,0.00022191,2]
[357692046,1744332727370,-769.63,0.00022191,2]
[357692047,1744332727380,-5806.94,0.00022191,2]
[357692048,1744332727390,-555.86,0.00022191,2]
[357692049,1744332727400,-1492.5,0.00022191,2]
[357692050,1744332727410,-726.32,0.00022191,2]
[357692051,1744332727419,-659.35,0.00022191,2]
[357692052,1744332727430,-688.0,0.00022191,2]
[357692053,1744332727440,-1067.15,0.00022191,2]
[357692054,1744332727449,-2931.48,0.00022191,2]
[357692055,1744332727459,-1735.47,0.00022191,2]
[357692056,1744332727469,-1109.5,0.00022191,2]
[357692057,1744332727479,-711.11,0.00022191,2]
[357692058,1744332727490,-13734.21,0.00022191,2]
[357692059,1744332727500,-2323.29,0.00022191,2]
[357692060,1744332727509,-1042.58,0.00022191,2]
[357692061,1744332727519,-728.17,0.00022191,2]
[357692062,1744332727530,-569.2,0.00022191,2]
[357692063,1744332727540,-500.0,0.00022191,2]
[357692064,1744332727551,-4218.44,0.00022191,2]
[357692065,1744332727562,-848.49,0.00022191,2]
[357692066,1744332727574,-2639.23,0.00022191,2]
[357692067,1744332727584,-2518.79,0.00022191,2]
[357692068,1744332727593,-2840.99,0.00022191,2]
[357692069,1744332727604,-630.78,0.00022191,2]
[357692070,1744332727614,-500.0,0.00022191,2]
[357692071,1744332727624,-1220.83,0.00022191,2]
[357692072,1744332727634,-5035.72,0.00022191,2]
[357692073,1744332727645,-3916.52,0.00022191,2]
[357692074,1744332727655,-508.34,0.00022191,2]
[357692075,1744332727667,-1000.19,0.00022191,2]
[357692076,1744332727680,-884.76,0.00022191,2]
[357692077,1744332727690,-1347.73,0.00022191,2]
[357692078,1744332727701,-4175.53,0.00022191,2]
[357692079,1744332727711,-2772.56,0.00022191,2]
[357692080,1744332727722,-792.4,0.00022191,2]
[357692081,1744332727732,-856.93,0.00022191,2]
[357692082,1744332727743,-740.48,0.00022191,2]
[357692083,1744332727754,-781.83,0.00022191,2]
[357692084,1744332727765,-9626.05,0.00022191,2]
[357692085,1744332727775,-601.25,0.00022191,2]
[357692086,1744332727786,-966.14,0.00022191,2]
[357692087,1744332727796,-1947.04,0.00022191,2]
[357692088,1744332727806,-4677.94,0.00022191,2]
[357692089,1744332727817,-527.85,0.00022191,2]
[357692090,1744332727827,-714.13,0.00022191,2]
[357692091,1744332727838,-756.51,0.00022191,2]
[357692092,1744332727848,-6483.88,0.00022191,2]
[357692093,1744332727858,-808.09,0.00022191,2]
[357692094,1744332727868,-615.42,0.00022191,2]
[357692095,1744332727878,-500.0,0.00022191,2]
[357692096,1744332727888,-6484.18,0.00022191,2]
[357692097,1744332727898,-1945.56,0.00022191,2]
[357692098,1744332727908,-524.93,0.00022191,2]
[357692099,1744332727918,-1064.33,0.00022191,2]
[357692100,1744332727928,-585.82,0.00022191,2]
[357692101,1744332727938,-1433.89,0.00022191,2]
[357692102,1744332727947,-917.83,0.00022191,2]
[357692103,1744332727957,-449.99138439,0.00022191,2]
[357692104,1744332727966,-668.16,0.00022191,2]
[357692105,1744332727976,-1100.79,0.00022191,2]
[357692106,1744332727986,-540.97,0.00022191,2]
[357692107,1744332727996,-4679.43,0.00022191,2]
[357692108,1744332728006,-947.12,0.00022191,2]
[357692109,1744332728016,-1008.44,0.00022191,2]
[357692110,1744332728026,-4183.52,0.00022191,2]
[357692111,1744332728035,-1151.7,0.00022191,2]
[357692112,1744332728046,-759.31,0.00022191,2]
[357692113,1744332728056,-500.0,0.00022191,2]
[357692114,1744332728066,-626.77,0.00022191,2]
[357692115,1744332728076,-942.33,0.00022191,2]
[357692116,1744332728086,-2564.86,0.00022191,2]
[357692117,1744332728097,-1699.0,0.00022191,2]
[357692118,1744332728107,-731.4,0.00022191,2]
[357692119,1744332728118,-570.97,0.00022191,2]
[357692120,1744332728128,-3260.9,0.00022191,2]
[357692121,1744332728138,-754.83,0.00022191,2]
[357692122,1744332728148,-500.9,0.00022191,2]
[357692123,1744332728158,-500.0,0.00022191,2]
[357692124,1744332728168,-18184.96,0.00022191,2]
[357692125,1744332728178,-506.91,0.00022191,2]
[357692126,1744332728187,-740.5,0.00022191,2]
[357692127,1744332728197,-500.0,0.00022191,2]
[357692128,1744332728207,-559.11,0.00022191,2]
[357692129,1744332728218,-1994.39,0.00022191,2]
[357692130,1744332728228,-911.05,0.00022191,2]
[357692131,1744332728238,-6436.24,0.00022191,2]
[357692132,1744332728248,-1272.17,0.00022191,2]
[357692133,1744332728258,-1574.76,0.00022191,2]
[357692134,1744332728270,-650.21,0.00022191,2]
[357692135,1744332728280,-1474.54,0.00022191,2]
[357692136,1744332728290,-2422.75,0.00022191,2]
[357692137,1744332728300,-160.0,0.000222,3]
[357692138,1744332728310,-160.0,0.00022219,18]
[357692139,1744332728321,-239.61996748,0.00022219,5]
[357692140,1744332728331,-1000.0,0.00022252,2]
[357692141,1744332728341,-1152.0,0.00022309,2]
[357692142,1744332728351,-351.0,0.00022311,2]
[357692143,1744332728361,-213.4393785,0.00022391,2]
[357692144,1744332728371,-156.7325953,0.00022391,2]
[357692145,1744332728381,-564.5161105,0.00022391,2]
[357692146,1744332728391,-156.7325953,0.00022391,2]
[357692147,1744332728401,-213.4393785,0.00022391,2]
[357692148,1744332728411,-564.5161105,0.00022391,2]
[357692149,1744332728421,-156.7325953,0.00022391,2]
[357692150,1744332728433,-213.4393785,0.00022391,2]
[357692151,1744332728443,-564.5161105,0.00022391,2]
[357692152,1744332728453,-213.4393785,0.00022391,2]
[357692153,1744332728463,-156.7325953,0.00022391,2]
[357692154,1744332728473,-564.5161105,0.00022391,2]
[357692155,1744332728483,-213.4393785,0.00022391,2]
[357692156,1744332728494,-156.7325953,0.00022391,2]
[357692157,1744332728503,-564.5161105,0.00022391,2]
[357692158,1744332728514,-156.7325953,0.00022391,2]
[357692159,1744332728525,-213.4393785,0.00022391,2]
[357692160,1744332728535,-156.7325953,0.00022391,2]
[357692161,1744332728545,-213.4393785,0.00022391,2]
[357692162,1744332728556,-11630.24417326,0.00022417,4]
[357692163,1744332728567,-1001.98386209,0.00022452,2]
[357692164,1744332728577,-1000.0,0.00022452,2]
[357692165,1744332728586,-1000.0,0.00022452,2]
[357692166,1744332728597,-1000.0,0.00022452,2]
[357692167,1744332728607,-1000.0,0.00022452,2]
[357692168,1744332728618,-1004.38024476,0.00022452,2]
[357692169,1744332728629,-698.37502209,0.00022452,2]
[357692170,1744332728639,-502.3286507,0.00022452,2]
[357692171,1744332728650,-1000.0,0.00022452,2]
[357692172,1744332728660,-1000.0,0.00022452,2]
[357692173,1744332728672,-1000.0,0.00022452,2]
[357692174,1744332728684,-1000.0,0.00022452,2]
[357692175,1744332728694,-491.24170274,0.00022452,2]
[357692176,1744332728704,-501.71043813,0.00022452,2]
[357692177,1744332728714,-1000.0,0.00022452,2]
[357692178,1744332728725,-1000.0,0.00022452,2]
[357692179,1744332728735,-1000.0,0.00022452,2]
[357692180,1744332728745,-1000.0,0.00022452,2]
[357692181,1744332728756,-1000.0,0.00022452,2]
[357692182,1744332728767,-563.9803179,0.00022452,2]
[357692183,1744332728777,-1000.0,0.00022452,2]
[357692184,1744332728787,-1000.0,0.00022452,2]
[357692185,1744332728797,-1000.0,0.00022452,2]
[357692186,1744332728808,-1006.60085047,0.00022452,2]
[357692187,1744332728820,-504.81287766,0.00022452,2]